Cogmind - Beta 14 @@@ ROGUE MODE // 2024.11.30 @ 19:12:12 Player: certified.possum Result: Self-destructed Performance ------------- Evolutions (1) 500 Regions Visited (2) 400 Robots Destroyed (15) 75 Value Destroyed (367) 367 Prototype IDs (0) 0 Alien Tech Used (0) 0 Bonus (0) 0 TOTAL SCORE: 1342 Bonus ------- None Cogmind --------- Core Integrity 327/400 Matter 10/300 Energy 100/100 System Corruption 0% Temperature Cool (19) Movement Rolling (120) Ox2 Location -9/Materials Parts ------- > --- POWER (2) -------- (None) > --- PROPULSION (3) --- Armored Wheel > --- UTILITY (2) ------ High-capacity Storage Unit Weight Redist. System > --- WEAPON (2) ------- EM Pulse Gun Light Assault Rifle > --- INVENTORY (20) --- Light Treads Light Treads Light Treads Aluminum Leg Armored Wheel Armored Wheel Armored Wheel Flight Unit Flight Unit Particle Gun Light EM Pulse Cannon Light EM Pulse Cannon Grenade Launcher Datajack Peak State ------------ > --- POWER ------------ Ion Engine Light Nuclear Core > --- PROPULSION ------- Wheel Wheel Wheel > --- UTILITY ---------- High-capacity Storage Unit Weight Redist. System > --- WEAPON ----------- EM Pulse Gun Particle Gun > --- INVENTORY -------- Light Ion Engine Aluminum Leg Wheel Hover Unit Hover Unit Flight Unit Flight Unit Light Assault Rifle Grenade Launcher Datajack [Rating: 14] Favorites ----------- Power Light Nuclear Core Engine Light Ion Engine Power Core Light Nuclear Core Propulsion Wheel Treads Light Treads Leg Aluminum Leg Wheel Wheel Hover Unit Hover Unit Flight Unit Flight Unit Utility High-capacity Storage Unit Device Weight Redist. System Storage High-capacity Storage Unit Processor Transport Network Coupler Weapon EM Pulse Gun Energy Gun EM Pulse Gun Ballistic Gun Light Assault Rifle Launcher Grenade Launcher Build | -11 -10 -9 ------- Run | Yrd Mat Mat Slots Evolved 2 | . . 2 Power 1 | . . 1 Propulsion 1 | . . 1 Utility . | . . . Weapon . | . . . Parts Attached 46 | 5 24 17 Power 6 | 1 1 4 Engine 5 | 1 . 4 Core 1 | . 1 . Reactor . | . . . Propulsion 29 | 2 17 10 Treads 1 | . . 1 Leg 1 | . . 1 Wheel 14 | 2 9 3 Hover 6 | . 4 2 Flight 7 | . 4 3 Utility 3 | . 3 . Device 1 | . 1 . Storage 1 | . 1 . Processor 1 | . 1 . Hackware . | . . . Protection . | . . . Artifact . | . . . Weapon 8 | 2 3 3 Energy Gun 4 | 1 2 1 Energy Cannon . | . . . Ballistic Gun 2 | 1 . 1 Ballistic Cannon . | . . . Launcher 2 | . 1 1 Special Weapon . | . . . Impact Weapon . | . . . Slashing Weapon . | . . . Piercing Weapon . | . . . Special Melee Weapon . | . . . Unidentified Prototypes . | . . . Parts Lost 6 | . . 6 Power 3 | . . 3 Propulsion 3 | . . 3 Utility . | . . . Weapon . | . . . Highest Loss Streak 4 | . . 4 To Critical Strikes . | . . . Average Slot Usage (%) 90 | . 96 79 Engine 4 | . 4 6 Core 10 | . 9 11 Wheel 21 | . 26 14 Hover 1 | . . 3 Flight 1 | . 1 . Device 7 | . 6 11 Storage 11 | . 12 11 Processor 4 | . 6 . Energy Gun 18 | . 20 14 Ballistic Gun 1 | . . 4 Launcher 5 | . 6 3 Peak Build Rating 14 | 5 12 14 Average Rating 9 | 3 9 11 On Entrance 5 | . 5 12 Naked Turns . | . . . Heaviest Build 56 | 6 51 56 Greatest Support 36 | 20 26 36 Greatest Overweight (x) 12 | . 12 3 Average Overweight (x) 1 | . 1 2 Largest Inventory Capacity 20 | 5 20 20 Average Capacity 16 | 5 18 20 Most Carried 14 | 3 12 14 Average Carried 7 | . 8 9 Final Capacity 20 | 5 20 20 Final Carried 14 | 3 12 14 Class Distribution -------------------- 100% | Mutant Dominant Class ---------------- Mutant | -10/Materials Mutant | -9/Materials Resources | -11 -10 -9 ----------- Run | Yrd Mat Mat Matter Collected 462 | 260 108 94 Remotely . | . . . Salvage Created 483 | 75 248 160 Parts 37 | 3 22 12 Haulers Intercepted 1 | . 1 . Recyclers Shooed . | . . . Parts Field Recycled . | . . . Retrieved Matter . | . . . Parts Self-Destructed . | . . . Prevented . | . . . Kills | -11 -10 -9 ------- Run | Yrd Mat Mat Combat Hostiles Destroyed 11 | 1 7 3 Guns 6 | . 4 2 AOE 5 | 1 3 1 Classes Destroyed 6 | 2 3 1 Worker 2 | 1 1 . Builder 1 | . 1 . Hauler 1 | . 1 . Swarmer 3 | . 3 . Grunt 5 | 1 4 . Sentry 3 | . . 3 Best Kill Streak 5 | 1 5 2 Combat Bots Only 3 | 1 3 2 Max Kills in Single Turn 3 | 1 3 1 Gunslinging . | . . . Exploded 1 | 1 1 1 Melee . | . . . Uniques/NPCs Destroyed . | . . . Combat | -11 -10 -9 -------- Run | Yrd Mat Mat Hostile Shots Fired 56 | 9 11 36 Missed 17 | 3 5 9 Damage Taken 555 | 69 85 401 Core 124 | 10 41 73 Absorbed by Shields . | . . . Core Remaining (%) 87 | 96 79 . Volleys Fired 40 | 10 16 14 Largest 2 | 2 2 2 Hottest 105 | 60 105 95 Shots Fired 67 | 20 25 22 Gun 57 | 20 17 20 Cannon . | . . . Launcher 10 | . 8 2 Special . | . . . Kinetic 16 | 10 . 6 Thermal 8 | . 6 2 Explosive 10 | . 8 2 Electromagnetic 33 | 10 11 12 Robot Hit Streak 10 | 4 5 10 Robot Miss Streak 3 | 2 3 3 Penetration Max . | . . . Secondary Targets . | . . . Shots Hit Robots 38 | 11 11 16 Core Hits 24 | 4 13 7 Critical Kills . | . . . Critical Parts Destroyed . | . . . Critical Strikes 1 | . 1 . Corrupt 1 | . 1 . Melee Attacks . | . . . Impact . | . . . Slashing . | . . . Piercing . | . . . Sneak Attacks . | . . . Combat Hostiles . | . . . Follow-up Attacks . | . . . Damage Inflicted 720 | 153 341 226 Guns 415 | 131 110 174 Cannons . | . . . Explosions 305 | 22 231 52 Melee . | . . . Ramming . | . . . Kinetic 80 | 42 . 38 Thermal 159 | 22 68 69 Explosive 209 | . 193 16 Electromagnetic 272 | 89 80 103 Impact . | . . . Slashing . | . . . Piercing . | . . . Highest Corruption 1 | . 1 . Average Corruption 1 | . 1 . Corruption Purged . | . . . Corruption Blocked . | . . . Effects 2 | . 2 . Message Errors 1 | . 1 . Matter Fused 1 | . 1 . Overload Shots . | . . . Overflow Damage . | . . . Projectiles . | . . . Explosions . | . . . Melee . | . . . Knockbacks . | . . . Impact . | . . . Kinetic . | . . . Secondary . | . . . Self-Inflicted Damage 31 | . 31 . Shots 1 | . 1 . Rammed . | . . . Targets Rammed . | . . . Kicked . | . . . Crushed . | . . . Highest Temperature 90 | 76 78 90 Average Temperature 34 | 38 26 38 Received Heat Transfer 213 | 36 18 159 Siege Activations . | . . . Robots Corrupted . | . . . Combat Hostiles . | . . . Parts Fried . | . . . Impact Corruptions . | . . . Robots Melted . | . . . Combat Hostiles . | . . . Parts Melted 1 | . . 1 Heat Transferred 298 | 50 124 124 Parts Sabotaged . | . . . Parts Stolen . | . . . Parts Stripped . | . . . Power Chain Reactions 3 | 1 1 1 Alert | -11 -10 -9 ------- Run | Yrd Mat Mat Peak Influence 254 | 25 254 229 Initial 107 | . 16 107 Average 154 | 4 186 184 Maximum Alert Level 1 | . 1 1 Low Security (%) 59 | 100 50 52 Level 1 40 | . 49 47 Level 2 . | . . . Level 3 . | . . . Level 4 . | . . . Level 5 . | . . . High Security . | . . . Max Security . | . . . Squads Dispatched 1 | . . 1 Investigation . | . . . Extermination . | . . . Reinforcement 1 | . . 1 Assault . | . . . Garrison . | . . . Intercept . | . . . Searches Triggered . | . . . Construction Impeded . | . . . Haulers Reinforced . | . . . Active Scanning Responses . | . . . Cargo Convoy Interrupts . | . . . Stealth | -11 -10 -9 --------- Run | Yrd Mat Mat Distress Signals 1 | . 1 . Communications Jammed . | . . . Distress Signals . | . . . Times Spotted 15 | 1 9 5 Peak Tracking Total 5 | 1 3 5 Tactical Retreats 1 | . . 1 Traps | -11 -10 -9 ------- Run | Yrd Mat Mat Traps Triggered 1 | . 1 . Indirectly . | . . . Trap Hack Attempts . | . . . Triggered . | . . . Disarmed . | . . . Reprogrammed . | . . . Reused . | . . . Traps Extracted . | . . . Installed . | . . . Triggered . | . . . Machines | -11 -10 -9 ---------- Run | Yrd Mat Mat Machines Disabled 1 | . . 1 Max in Single Turn 1 | . . 1 Machines Repaired . | . . . Machines Dismantled . | . . . Machines Sabotaged . | . . . Overloaded Fab Kills . | . . . Hacking | -11 -10 -9 --------- Run | Yrd Mat Mat Machines Accessed . | . . . Terminals . | . . . Fabricators . | . . . Repair Stations . | . . . Recycling Units . | . . . Scanalyzers . | . . . Garrison Access . | . . . Total Hacks . | . . . Successful . | . . . Failed . | . . . Catastrophic . | . . . Database Lockouts . | . . . Manual . | . . . Terminals . | . . . Fabricators . | . . . Repair Stations . | . . . Recycling Units . | . . . Scanalyzers . | . . . Garrison Access . | . . . Terminal Hacks . | . . . Fabricator Hacks . | . . . Repair Station Hacks . | . . . Recycling Unit Hacks . | . . . Scanalyzer . | . . . Garrison Access Hacks . | . . . Unauthorized Hacks . | . . . Terminals . | . . . Fabricators . | . . . Repair Stations . | . . . Recycling Units . | . . . Scanalyzers . | . . . Garrison Access . | . . . Data Cores Recovered . | . . . Used . | . . . Hacking Detections . | . . . Full Trace Events . | . . . Feedback Events . | . . . Feedback Blocked . | . . . Robot Schematics Acquired . | . . . Robots Built . | . . . Authchips . | . . . Time . | . . . Total Robot Build Rating . | . . . Part Schematics Acquired . | . . . Parts Built . | . . . Authchips . | . . . Time . | . . . Total Part Build Rating . | . . . Parts Repaired . | . . . Time . | . . . Parts Recycled . | . . . Recycled Matter . | . . . Retrieved Matter . | . . . Retrieved Components . | . . . Parts Scanalyzed . | . . . Part Schematics Acquired . | . . . Parts Damaged . | . . . Bothacking | -11 -10 -9 ------------ Run | Yrd Mat Mat Used RIF Installer . | . . . Robots Hacked . | . . . Non-combat . | . . . Combat . | . . . Robot Hacks Applied . | . . . Relay Couplers Released . | . . . Fabnet Peak Effective % . | . . . Robots Rewired . | . . . Allies Hacked . | . . . Hacks Repelled . | . . . Allies | -11 -10 -9 -------- Run | Yrd Mat Mat Total Allies . | . . . Largest Group . | . . . Highest-Rated Group . | . . . Highest-Rated Ally . | . . . Total Orders . | . . . Ally Attacks . | . . . Total Damage . | . . . Kills . | . . . Allies Corrupted . | . . . Allies Melted . | . . . Intel | -11 -10 -9 ------- Run | Yrd Mat Mat Robot Analysis Total . | . . . Derelict Logs Recovered . | . . . Drone Launches . | . . . Drone Recoveries . | . . . Exploration | -11 -10 -9 ------------- Run | Yrd Mat Mat Turns Passed 648 | 113 353 182 Spaces Moved 441 | 96 253 92 Core 34 | 34 . . Treads . | . . . Legs . | . . . Wheels 390 | 62 249 79 Hover 16 | . 3 13 Flight 1 | . 1 . Fastest Speed 50 | 50 80 95 Average Speed 100 | 69 103 124 Slowest Speed 1005 | 80 1005 176 Overloaded Moves . | . . . Propulsion Burnouts . | . . . Robots Hopped . | . . . Cave-ins Triggered . | . . . Exploration Rate (%) 19 | 6 45 7 Regions Visited 2 Branch Regions . Pre-discovered Areas . | . . . Known Exits Taken . | . . . Unknown Exits Taken 2 | 1 1 . Scrap Searched . | . . . Spaces Dug . | . . . Terrain Destroyed 64 | . 44 20 Melee . | . . . Projectile . | . . . AOE 64 | . 44 20 Terrain Rammed . | . . . Walls Destroyed . | . . . Machines Disabled . | . . . Actions | -11 -10 -9 --------- Run | Yrd Mat Mat Total 573 | 123 311 139 Wait 6 | 6 . . Move 439 | 95 252 92 Hop . | . . . Pick Up 30 | 7 14 9 Fast Attach 1 | 1 . . Attach 20 | 4 5 11 Detach 7 | . 3 4 Swap 25 | . 19 6 Drop 5 | . 2 3 Fire 40 | 10 16 14 Melee . | . . . Ram . | . . . Kick . | . . . Crush . | . . . Escape Stasis . | . . . Rewire . | . . . Trap . | . . . Miscellaneous . | . . . Route ------- -11/Scrapyard -10/Materials -9/Materials History --------- Turn | Location | Event 2 | -11/Scrapyard | Met Revision 17 82 | -11/Scrapyard | Discovered new exit (range 8) 114 | -11/Scrapyard | Entered Materials 341 | -10/Materials | Build established: Mutant 385 | -10/Materials | Discovered new exit (range 7) 467 | -10/Materials | Entered another Materials area 467 | -9/Materials | Evolved 2 slots: Power x1, Propulsion x1 558 | -9/Materials | Lost 4 parts (1p3n) 649 | -9/Materials | Self-destructed Last Messages --------------- Acquired 60 matter. Acquired Lgt. Treads. U-05 Engineer lays Concrete. U-05 Engineer builds a Wall. Acquired Corrupted Lgt. Treads. U-05 Engineer builds a Wall. U-05 Engineer lays Concrete. Acquired Corrupted Lgt. Treads. U-05 Engineer lays Concrete. U-05 Engineer builds a Door. U-05 Engineer lays Concrete. U-05 Engineer builds a Wall. Dropped Wheel. U-05 Engineer builds a Wall. U-05 Engineer builds a Door. Acquired Arm. Wheel. Dropped Hover Unit. Acquired Lgt. EM Pulse Cannon. R-06 Scavenger collects Hvy. Assault Rifle. Lgt. Nuclear Core destroyed. Map ----- +----------------------------------------------------+ | ????????????????????????????????????? | | ????????????????????????????????????? | | ????????????????????????????????????? | | ????????????????????????????????????? | | ????????????????????????????????????? | | ????????????????????????????????????? | | ????????????????????????????????????? | | ????????????????????????????????????? | | ????????????????????????????????????? | | ????????????????????????????????????? | | ???????????? ??????????????????????? | | ???????????? ??????????????????????? | | ???????????? ??????????????????????? | | ???????????? #?????????????????????? | | ???????????? #?????????????????????? | | ???????????# ##????????????????????? | | ??????????## ##????????????????????? | | ??????????# g#????????????????????? | | ??????????+ % ????????????????????? | | ??????????? a ?????????????????????? | | ??????????? ?????????????????????? | | ???????????# #?????????????????????? | | ???????????# #?????????????????????? | | ???????????# #?????????????????????? | | ???????????# #???????"""???????????? | | ############@ ##????? """???????????? | | # # ###? """???????????? | | # ! + ### """???????????? | | # #! + """???????????? | | # """ #! * ### #?????????? | | #] """ ## ###???? #?????????? | | # == """ ##[[# ###########?????????? | | # = ## ## #???????????? | | # ## ## #???????????? | | ############ ## #???????????? | | ???????????# ## #???????????? | | ???????????# ## #???????????? | | ???????????# ## #???????????? | | ???????????# ## #???????????? | | ???????????# ## #???????????? | | ???????????# ## #???????????? | | ???????????# ######+####???????????? | | ??????????## ####! #????????????? | | ??????????# #????????????? | | ??????????# T #????????????? | | ??????????# #????????????? | | ??????????######## #????????????? | | ?????????????????## ##????????????? | | ??????????????????# #?????????????? | | ??????????????????# #?????????????? | +----------------------------------------------------+ Best States ------------- Heat Dissipation 28 Energy Generation 19 Energy Capacity 310 Matter Stores 300 Matter Capacity 300 Sight Range 16 Terrain Scan Density 10 Additional Mass Support 6 Evasion (%) 50 Item Schematics ----------------- None Robot Schematics ------------------ None Fabricated ------------ Nothing Alien Tech Used ----------------- None Achievements -------------- Crack Shot Loot Pinata Oops Uninvited Guest Challenges ------------ None Game ------ Seed NuclearAssemblyBoomstick Manual? 0 Play Time 00:25:35 Cumulative 0.3 hours Start 2024.11.30 @ 18:48:12 End 2024.11.30 @ 19:12:12 Sessions 1 Manual Loads 0 Difficulty Rogue Special Mode None Game No. 1 Rogue 1 Adventurer 0 Explorer 0 Win Type - Total 0 Types 0/0/0/0/0/0/0/0/0 Lore% 0 Gallery% 1 Achievement% 1 Wizard Run 0 Options --------- Layout 1 ASCII 0 Keyboard 0 Movement Mouse Keybinds 0 Fullscreen 2 Font 32/SmallcapsGlow Map View 50x35 Zoom Use 0% Tactical HUD 0 Map Filters NONE Filters NONE Steam 1 RUN: 32ef0afc-9592-441e-a9da-b64a984cfa04